fUSD/lending_fUSD_20240903
["ID","MTS","AMOUNT","RATE_DAILY","PERIOD"]
[337058317,1725400266914,-840.82,0.00013698,2]
[337058318,1725400266923,-948.34,0.00013698,2]
[337058319,1725400266934,-1955.73,0.00013698,2]
[337058320,1725400266943,-500.0,0.00013698,2]
[337058321,1725400266952,-3204.74,0.00013698,2]
[337058322,1725400266962,-500.0,0.00013698,2]
[337058323,1725400266972,-4068.02,0.00013698,2]
[337058324,1725400266981,-2371.43,0.00013698,2]
[337058325,1725400266991,-1315.31,0.00013698,2]
[337058326,1725400267001,-516.2,0.00013698,2]
[337058327,1725400267011,-3487.55,0.00013698,2]
[337058328,1725400267021,-500.0,0.00013698,2]
[337058329,1725400267031,-1145.50176611,0.00013716,2]
[337058330,1725400267039,-1100.69782956,0.00013734,2]
[337058331,1725400267049,-1145.50176611,0.00013741,2]
[337058332,1725400267058,-1145.50176611,0.00013765,2]
[337058333,1725400267068,-500.0,0.00013773,2]
[337058334,1725400267078,-500.0,0.00013773,2]
[337058335,1725400267087,-500.0,0.00013779,2]
[337058336,1725400267098,-234.0,0.0001378,2]
[337058337,1725400267108,-1895.1130485,0.00013783,2]
[337058338,1725400267117,-500.0,0.00013785,2]
[337058339,1725400267127,-500.0,0.00013785,2]
[337058340,1725400267137,-500.0,0.00013785,2]
[337058341,1725400267147,-433.44338155,0.00013785,2]
[337058342,1725400267157,-500.0,0.00013786,2]
[337058343,1725400267166,-500.0,0.00013786,2]
[337058344,1725400267176,-500.0,0.00013786,2]
[337058345,1725400267185,-500.0,0.00013786,2]
[337058346,1725400267195,-500.0,0.00013786,2]
[337058347,1725400267205,-500.0,0.00013786,2]
[337058348,1725400267214,-500.0,0.00013786,2]
[337058349,1725400267224,-500.0,0.00013786,2]
[337058350,1725400267234,-400.3764391,0.00013786,2]
[337058351,1725400267244,-365.20305293,0.00013786,2]
[337058352,1725400267254,-500.0,0.00013786,2]
[337058353,1725400267263,-330.98596463,0.00013786,2]
[337058354,1725400267273,-500.0,0.00013786,2]
[337058355,1725400267283,-500.0,0.00013786,2]
[337058356,1725400267293,-660.36,0.00013786,2]
[337058357,1725400267303,-660.36,0.00013786,2]
[337058358,1725400267312,-500.0,0.00013786,2]
[337058359,1725400267322,-500.0,0.00013786,2]
[337058360,1725400267332,-500.0,0.00013786,2]
[337058361,1725400267343,-500.0,0.00013786,2]
[337058362,1725400267352,-931.14,0.00013786,2]
[337058363,1725400267361,-931.14,0.00013786,2]
[337058364,1725400267371,-296.93417963,0.00013786,2]
[337058365,1725400267380,-952.82,0.00013786,2]
[337058366,1725400267391,-952.82,0.00013786,2]
[337058367,1725400267401,-500.0,0.00013786,2]
[337058368,1725400267410,-500.0,0.00013786,2]
[337058369,1725400267420,-500.0,0.00013786,2]
[337058370,1725400267433,-524.35,0.00013786,2]
[337058371,1725400267443,-524.35,0.00013786,2]
[337058372,1725400267452,-2468.26,0.00013786,2]
[337058373,1725400267462,-1396.48,0.00013786,2]
[337058374,1725400267472,-1396.48,0.00013786,2]
[337058375,1725400267482,-2718.35,0.00013786,2]
[337058376,1725400267492,-2718.35,0.00013786,2]
[337058377,1725400267502,-500.0,0.00013786,2]
[337058378,1725400267513,-204.38622749,0.00013786,2]
[337058379,1725400267523,-500.0,0.00013786,2]
[337058380,1725400267533,-391.39206649,0.00013786,2]
[337058381,1725400267543,-3966.86,0.00013786,2]
[337058382,1725400267552,-1090.29,0.00013786,2]
[337058383,1725400267563,-1090.29,0.00013786,2]
[337058384,1725400267572,-1090.29,0.00013786,2]
[337058385,1725400267583,-3336.2,0.00013786,2]
[337058386,1725400267594,-500.0,0.00013786,2]
[337058387,1725400267604,-500.0,0.00013786,2]
[337058388,1725400267615,-3148.4,0.00013786,2]
[337058389,1725400267627,-3148.4,0.00013786,2]
[337058390,1725400267638,-3148.4,0.00013786,2]
[337058391,1725400267650,-6338.04,0.00013786,2]
[337058392,1725400267660,-6338.04,0.00013786,2]
[337058393,1725400267669,-17290.59,0.00013786,2]
[337058394,1725400267679,-500.0,0.00013786,2]
[337058395,1725400267689,-500.0,0.00013786,2]
[337058396,1725400267699,-500.0,0.00013786,2]
[337058397,1725400267709,-2191.73,0.00013786,2]
[337058398,1725400267725,-2191.73,0.00013786,2]
[337058399,1725400267734,-680.05,0.00013786,2]
[337058400,1725400267745,-1303.88,0.00013786,2]
[337058401,1725400267754,-1303.88,0.00013786,2]
[337058402,1725400267768,-1303.88,0.00013786,2]
[337058403,1725400267780,-2886.04,0.00013786,2]
[337058404,1725400267791,-2886.04,0.00013786,2]
[337058405,1725400267802,-735.77,0.00013786,2]
[337058406,1725400267812,-1734.81,0.00013786,2]
[337058407,1725400267823,-1734.81,0.00013786,2]
[337058408,1725400267833,-1734.81,0.00013786,2]
[337058409,1725400267842,-2180.0,0.00013786,2]
[337058410,1725400267852,-2180.0,0.00013786,2]
[337058411,1725400267862,-554.56,0.00013786,2]
[337058412,1725400267871,-5307.94,0.00013786,2]
[337058413,1725400267881,-5307.94,0.00013786,2]
[337058414,1725400267891,-1716.24,0.00013786,2]
[337058415,1725400267902,-1127.34,0.00013786,2]
[337058416,1725400267912,-1127.34,0.00013786,2]
[337058417,1725400267922,-1149.45,0.00013786,2]
[337058418,1725400267932,-1149.45,0.00013786,2]
[337058419,1725400267943,-556.64,0.00013786,2]
[337058420,1725400268184,-556.64,0.00013786,2]
[337058421,1725400268196,-556.64,0.00013786,2]
[337058422,1725400268206,-500.0,0.00013786,2]
[337058423,1725400268216,-500.0,0.00013786,2]
[337058424,1725400268225,-1619.01,0.00013786,2]
[337058425,1725400268235,-1619.01,0.00013786,2]
[337058426,1725400268244,-500.0,0.00013786,2]
[337058427,1725400268254,-12707.11,0.00013786,2]
[337058428,1725400268263,-500.0,0.00013786,2]
[337058429,1725400268272,-500.0,0.00013786,2]
[337058430,1725400268282,-1668.35,0.00013786,2]
[337058431,1725400268291,-1668.35,0.00013786,2]
[337058432,1725400268301,-842.78,0.00013786,2]
[337058433,1725400268312,-842.78,0.00013786,2]
[337058434,1725400268321,-1167.24,0.00013786,2]
[337058435,1725400268331,-1167.24,0.00013786,2]
[337058436,1725400268341,-37122.41,0.00013786,2]
[337058437,1725400268350,-1946.22,0.00013786,2]
[337058438,1725400268360,-1946.22,0.00013786,2]
[337058439,1725400268370,-1946.22,0.00013786,2]
[337058440,1725400268380,-3836.89,0.00013786,2]
[337058441,1725400268391,-3836.89,0.00013786,2]
[337058442,1725400268400,-1987.06,0.00013786,2]
[337058443,1725400268410,-1987.06,0.00013786,2]
[337058444,1725400268419,-1066.47,0.00013786,2]
[337058445,1725400268429,-1066.47,0.00013786,2]
[337058446,1725400268439,-219.35153052,0.00013786,2]
[337058447,1725400268448,-1371.78,0.00013786,2]
[337058448,1725400268458,-1371.78,0.00013786,2]
[337058449,1725400268467,-994.43,0.00013786,2]
[337058450,1725400268476,-994.43,0.00013786,2]
[337058451,1725400268486,-8859.13,0.00013786,2]
[337058452,1725400268495,-1400.93,0.00013786,2]
[337058453,1725400268504,-1400.93,0.00013786,2]
[337058454,1725400268514,-815.31,0.00013786,2]
[337058455,1725400268523,-815.31,0.00013786,2]
[337058456,1725400268532,-815.31,0.00013786,2]
[337058457,1725400268542,-2699.11,0.00013786,2]
[337058458,1725400268551,-6705.01,0.00013786,2]
[337058459,1725400268560,-6705.01,0.00013786,2]
[337058460,1725400268570,-500.0,0.00013786,2]
[337058461,1725400268580,-500.0,0.00013786,2]
[337058462,1725400268589,-3942.48,0.00013786,2]
[337058463,1725400268599,-3942.48,0.00013786,2]
[337058464,1725400268608,-1641.84989306,0.00013786,2]
[337058465,1725400268618,-1449.7,0.00013786,2]
[337058466,1725400268627,-1449.7,0.00013786,2]
[337058467,1725400268637,-500.0,0.00013786,2]
[337058468,1725400268647,-500.0,0.00013786,2]
[337058469,1725400268656,-500.0,0.00013786,2]
[337058470,1725400268665,-1276.17,0.00013786,2]
[337058471,1725400268675,-1276.17,0.00013786,2]
[337058472,1725400268684,-1276.17,0.00013786,2]
[337058473,1725400268694,-739.26,0.00013786,2]
[337058474,1725400268704,-1721.95,0.00013786,2]
[337058475,1725400268715,-1721.95,0.00013786,2]
[337058476,1725400268725,-1721.95,0.00013786,2]
[337058477,1725400268735,-3130.22,0.00013786,2]
[337058478,1725400268745,-3130.22,0.00013786,2]
[337058479,1725400268755,-500.0,0.00013786,2]
[337058480,1725400268765,-500.0,0.00013786,2]
[337058481,1725400268776,-21465.69,0.00013786,2]
[337058482,1725400268786,-8123.02,0.00013786,2]
[337058483,1725400268797,-8123.02,0.00013786,2]
[337058484,1725400268807,-500.0,0.00013786,2]
[337058485,1725400268818,-8123.02,0.00013786,2]
[337058486,1725400268827,-500.0,0.00013786,2]
[337058487,1725400268837,-500.0,0.00013786,2]
[337058488,1725400268848,-500.0,0.00013786,2]
[337058489,1725400268858,-3170.09,0.00013786,2]
[337058490,1725400268868,-1416.75,0.00013786,2]
[337058491,1725400268878,-3170.09,0.00013786,2]
[337058492,1725400268888,-3170.09,0.00013786,2]
[337058493,1725400268898,-2159.36,0.00013786,2]
[337058494,1725400268907,-164.67766966,0.00013786,2]
[337058495,1725400268917,-2159.36,0.00013786,2]
[337058496,1725400268926,-2159.36,0.00013786,2]
[337058497,1725400268936,-500.0,0.00013786,2]
[337058498,1725400268945,-500.0,0.00013786,2]
[337058499,1725400268955,-500.0,0.00013786,2]
[337058500,1725400268964,-500.0,0.00013786,2]
[337058501,1725400268974,-500.0,0.00013786,2]
[337058502,1725400268983,-840.82,0.00013786,2]
[337058503,1725400268992,-948.34,0.00013786,2]
[337058504,1725400269002,-840.82,0.00013786,2]
[337058505,1725400269011,-948.34,0.00013786,2]
[337058506,1725400269020,-948.34,0.00013786,2]
[337058507,1725400269030,-1955.73,0.00013786,2]
[337058508,1725400269040,-1955.73,0.00013786,2]
[337058509,1725400269049,-500.0,0.00013786,2]
[337058510,1725400269059,-500.0,0.00013786,2]
[337058511,1725400269069,-500.0,0.00013786,2]
[337058512,1725400269079,-3204.74,0.00013786,2]
[337058513,1725400269088,-500.0,0.00013786,2]
[337058514,1725400269098,-500.0,0.00013786,2]
[337058515,1725400269107,-500.0,0.00013786,2]
[337058516,1725400269116,-4068.02,0.00013786,2]
[337058517,1725400269126,-2371.43,0.00013786,2]
[337058518,1725400269136,-2371.43,0.00013786,2]
[337058519,1725400269146,-1315.31,0.00013786,2]
[337058520,1725400269155,-1315.31,0.00013786,2]
[337058521,1725400269164,-516.2,0.00013786,2]
[337058522,1725400269173,-516.2,0.00013786,2]
[337058523,1725400269183,-516.2,0.00013786,2]
[337058524,1725400269192,-3487.55,0.00013786,2]
[337058525,1725400269202,-3487.55,0.00013786,2]
[337058526,1725400269211,-500.0,0.00013786,2]
[337058527,1725400269220,-3487.55,0.00013786,2]
[337058528,1725400269230,-500.0,0.00013786,2]
[337058529,1725400269239,-500.0,0.00013786,2]
[337058530,1725400269248,-500.0,0.00013786,2]
[337058531,1725400269258,-1090.0,0.00013787,2]
[337058532,1725400269267,-500.0,0.00013787,2]
[337058533,1725400269276,-500.0,0.00013787,2]
[337058534,1725400269286,-500.0,0.00013787,2]
[337058535,1725400269295,-500.0,0.00013787,2]
[337058536,1725400269304,-209.96855529,0.00013787,2]
[337058537,1725400269314,-269.978064,0.00013787,2]
[337058538,1725400269323,-502.71470567,0.00013787,2]
[337058539,1725400269332,-588.50689209,0.00013787,2]
[337058540,1725400269342,-500.0,0.00013787,2]
[337058541,1725400269352,-250.25805984,0.00013787,2]
[337058542,1725400269361,-500.0,0.00013787,2]
[337058543,1725400269371,-163.44822281,0.00013787,2]
[337058544,1725400269379,-547.25431596,0.00013787,2]
[337058545,1725400269390,-500.0,0.00013787,2]
[337058546,1725400269400,-262.69339328,0.00013787,2]
[337058547,1725400269409,-505.76363463,0.00013787,2]
[337058548,1725400269418,-500.0,0.00013787,2]
[337058549,1725400269427,-500.0,0.00013787,2]
[337058550,1725400269436,-659.28,0.00013787,2]
[337058551,1725400269445,-659.28,0.00013787,2]
[337058552,1725400269454,-500.0,0.00013787,2]
[337058553,1725400269463,-500.0,0.00013787,2]
[337058554,1725400269475,-517.71118296,0.00013787,2]
[337058555,1725400269488,-500.0,0.00013787,2]
[337058556,1725400269502,-500.0,0.00013787,2]
[337058557,1725400269513,-500.0,0.00013787,2]
[337058558,1725400269522,-210.27243633,0.00013787,2]
[337058559,1725400269531,-500.0,0.00013787,2]
[337058560,1725400269541,-500.0,0.00013787,2]
[337058561,1725400269550,-500.0,0.00013787,2]
[337058562,1725400269559,-500.0,0.00013787,2]
[337058563,1725400269569,-1262.13,0.00013787,2]
[337058564,1725400269578,-1262.13,0.00013787,2]
[337058565,1725400269589,-500.57266779,0.00013787,2]
[337058566,1725400269599,-1403.23,0.00013787,2]
[337058567,1725400269608,-1403.23,0.00013787,2]
[337058568,1725400269618,-1042.67,0.00013787,2]
[337058569,1725400269627,-1042.67,0.00013787,2]
[337058570,1725400269637,-300.0,0.00013787,2]
[337058571,1725400269646,-500.0,0.00013787,2]
[337058572,1725400269655,-500.0,0.00013787,2]
[337058573,1725400269664,-500.0,0.00013787,2]
[337058574,1725400269673,-500.0,0.00013787,2]
[337058575,1725400269683,-1019.87,0.00013787,2]
[337058576,1725400269694,-1019.87,0.00013787,2]
[337058577,1725400269704,-270.42262379,0.00013787,2]
[337058578,1725400269716,-985.35,0.00013787,2]
[337058579,1725400269727,-985.35,0.00013787,2]
[337058580,1725400269738,-500.0,0.00013787,2]
[337058581,1725400269748,-500.0,0.00013787,2]
[337058582,1725400269759,-993.92,0.00013787,2]
[337058583,1725400269769,-993.92,0.00013787,2]
[337058584,1725400269779,-1686.85,0.00013787,2]
[337058585,1725400269789,-1686.85,0.00013787,2]
[337058586,1725400269799,-529.36332427,0.00013787,2]
[337058587,1725400269808,-500.0,0.00013787,2]
[337058588,1725400269818,-500.0,0.00013787,2]
[337058589,1725400269829,-500.0,0.00013787,2]
[337058590,1725400269839,-500.0,0.00013787,2]
[337058591,1725400269850,-500.0,0.00013787,2]
[337058592,1725400269861,-500.0,0.00013787,2]
[337058593,1725400269870,-562.76,0.00013787,2]
[337058594,1725400269880,-500.0,0.00013787,2]
[337058595,1725400269895,-562.76,0.00013787,2]
[337058596,1725400269906,-500.0,0.00013787,2]
[337058597,1725400269916,-500.0,0.00013787,2]
[337058598,1725400269925,-1190.22,0.00013787,2]
[337058599,1725400269935,-1190.22,0.00013787,2]
[337058600,1725400269945,-500.0,0.00013787,2]
[337058601,1725400269953,-500.0,0.00013787,2]
[337058602,1725400269962,-751.27,0.00013787,2]
[337058603,1725400269971,-751.27,0.00013787,2]
[337058604,1725400269983,-936.63,0.00013787,2]
[337058605,1725400269994,-500.0,0.00013787,2]
[337058606,1725400270005,-936.63,0.00013787,2]
[337058607,1725400270016,-500.0,0.00013787,2]
[337058608,1725400270026,-500.0,0.00013787,2]
[337058609,1725400270036,-324.27332396,0.00013787,2]
[337058610,1725400270045,-1037.09,0.00013787,2]
[337058611,1725400270054,-1037.09,0.00013787,2]
[337058612,1725400270064,-1481.35,0.00013787,2]
[337058613,1725400270075,-1481.35,0.00013787,2]
[337058614,1725400270085,-500.0,0.00013787,2]
[337058615,1725400270094,-500.0,0.00013787,2]
[337058616,1725400270104,-500.0,0.00013787,2]
[337058617,1725400270114,-500.0,0.00013787,2]
[337058618,1725400270123,-500.0,0.00013787,2]
[337058619,1725400270132,-500.0,0.00013787,2]
[337058620,1725400270143,-801.91,0.00013787,2]
[337058621,1725400270153,-801.91,0.00013787,2]
[337058622,1725400270163,-2723.93,0.00013787,2]
[337058623,1725400270172,-798.58,0.00013787,2]
[337058624,1725400270183,-2723.93,0.00013787,2]
[337058625,1725400270193,-798.58,0.00013787,2]
[337058626,1725400270203,-500.0,0.00013787,2]
[337058627,1725400270212,-500.0,0.00013787,2]
[337058628,1725400270222,-500.0,0.00013787,2]
[337058629,1725400270231,-500.0,0.00013787,2]
[337058630,1725400270241,-632.42,0.00013787,2]
[337058631,1725400270250,-632.42,0.00013787,2]
[337058632,1725400270259,-500.0,0.00013787,2]
[337058633,1725400270268,-500.0,0.00013787,2]
[337058634,1725400270277,-500.0,0.00013787,2]
[337058635,1725400270286,-500.0,0.00013787,2]
[337058636,1725400270296,-2090.96,0.00013787,2]
[337058637,1725400270305,-2090.96,0.00013787,2]
[337058638,1725400270315,-500.0,0.00013787,2]
[337058639,1725400270324,-500.0,0.00013787,2]
[337058640,1725400270333,-500.0,0.00013787,2]
[337058641,1725400270342,-500.0,0.00013787,2]
[337058642,1725400270351,-500.0,0.00013787,2]
[337058643,1725400270361,-500.0,0.00013787,2]
[337058644,1725400270370,-500.0,0.00013787,2]
[337058645,1725400270379,-500.0,0.00013787,2]
[337058646,1725400270388,-500.0,0.00013787,2]
[337058647,1725400270397,-500.0,0.00013787,2]
[337058648,1725400270406,-500.0,0.00013787,2]
[337058649,1725400270415,-508.33,0.00013787,2]
[337058650,1725400270424,-508.33,0.00013787,2]
[337058651,1725400270433,-500.0,0.00013787,2]
[337058652,1725400270442,-624.43380977,0.00013787,2]
[337058653,1725400270451,-500.0,0.00013787,2]
[337058654,1725400270524,-500.0,0.00013787,2]
[337058655,1725400270534,-257.19987462,0.00013787,2]
[337058656,1725400270542,-500.0,0.00013787,2]
[337058657,1725400270551,-500.0,0.00013787,2]
[337058658,1725400270560,-2568.97,0.00013787,2]
[337058659,1725400270569,-2568.97,0.00013787,2]
[337058660,1725400270578,-500.0,0.00013787,2]
[337058661,1725400270587,-547.66979466,0.00013787,2]
[337058662,1725400270597,-812.87,0.00013787,2]
[337058663,1725400270607,-812.87,0.00013787,2]
[337058664,1725400270617,-500.0,0.00013787,2]
[337058665,1725400270628,-500.0,0.00013787,2]
[337058666,1725400270638,-2514.65,0.00013787,2]
[337058667,1725400270647,-2514.65,0.00013787,2]
[337058668,1725400270658,-500.0,0.00013787,2]
[337058669,1725400270668,-500.0,0.00013787,2]
[337058670,1725400270678,-2580.18,0.00013787,2]
[337058671,1725400270687,-231.54845723,0.00013787,2]
[337058672,1725400270696,-2580.18,0.00013787,2]
[337058673,1725400270706,-500.0,0.00013787,2]
[337058674,1725400270721,-303.76087083,0.00013787,2]
[337058675,1725400270730,-500.0,0.00013787,2]
[337058676,1725400270739,-1077.95,0.00013787,2]
[337058677,1725400270749,-1077.95,0.00013787,2]
[337058678,1725400270760,-660.36,0.00013787,2]
[337058679,1725400270770,-500.0,0.00013787,2]
[337058680,1725400270778,-500.0,0.00013787,2]
[337058681,1725400270787,-1105.52,0.00013787,2]
[337058682,1725400270797,-1105.52,0.00013787,2]
[337058683,1725400270806,-500.0,0.00013787,2]
[337058684,1725400270817,-500.0,0.00013787,2]
[337058685,1725400270828,-1849.72,0.00013787,2]
[337058686,1725400270838,-1849.72,0.00013787,2]
[337058687,1725400270848,-500.0,0.00013787,2]
[337058688,1725400270857,-1949.17,0.00013787,2]
[337058689,1725400270866,-1949.17,0.00013787,2]
[337058690,1725400270874,-4004.18,0.00013787,2]
[337058691,1725400270884,-4004.18,0.00013787,2]
[337058692,1725400270894,-500.0,0.00013787,2]
[337058693,1725400270902,-503.54423261,0.00013787,2]
[337058694,1725400270911,-500.0,0.00013787,2]
[337058695,1725400270920,-500.0,0.00013787,2]
[337058696,1725400270930,-5088.19,0.00013787,2]
[337058697,1725400270939,-5088.19,0.00013787,2]
[337058698,1725400270949,-3368.35,0.00013787,2]
[337058699,1725400270960,-500.0,0.00013787,2]
[337058700,1725400270970,-3368.35,0.00013787,2]
[337058701,1725400270979,-500.0,0.00013787,2]
[337058702,1725400270989,-500.0,0.00013787,2]
[337058703,1725400270999,-3923.91,0.00013787,2]
[337058704,1725400271008,-3923.91,0.00013787,2]
[337058705,1725400271016,-500.0,0.00013787,2]
[337058706,1725400271026,-500.0,0.00013787,2]
[337058707,1725400271036,-1073.94,0.00013787,2]
[337058708,1725400271045,-1073.94,0.00013787,2]
[337058709,1725400271054,-961.88,0.00013787,2]
[337058710,1725400271064,-961.88,0.00013787,2]
[337058711,1725400271073,-931.14,0.00013787,2]
[337058712,1725400271082,-2722.26,0.00013787,2]
[337058713,1725400271091,-2722.26,0.00013787,2]
[337058714,1725400271100,-508.64505783,0.00013787,2]
[337058715,1725400271109,-1398.98,0.00013787,2]
[337058716,1725400271117,-1398.98,0.00013787,2]
[337058717,1725400271126,-3375.99,0.00013787,2]
[337058718,1725400271135,-952.82,0.00013787,2]
[337058719,1725400271144,-3375.99,0.00013787,2]
[337058720,1725400271153,-4120.04,0.00013787,2]
[337058721,1725400271162,-4120.04,0.00013787,2]
[337058722,1725400271171,-500.0,0.00013787,2]
[337058723,1725400271181,-500.0,0.00013787,2]
[337058724,1725400271190,-718.52,0.00013787,2]
[337058725,1725400271199,-718.52,0.00013787,2]
[337058726,1725400271208,-3083.27,0.00013787,2]
[337058727,1725400271217,-3083.27,0.00013787,2]
[337058728,1725400271226,-3266.49,0.00013787,2]
[337058729,1725400271235,-3266.49,0.00013787,2]
[337058730,1725400271245,-524.35,0.00013787,2]
[337058731,1725400271254,-2800.98,0.00013787,2]
[337058732,1725400271263,-2800.98,0.00013787,2]
[337058733,1725400271273,-2468.26,0.00013787,2]
[337058734,1725400271283,-2468.26,0.00013787,2]
[337058735,1725400271292,-1585.12,0.00013787,2]
[337058736,1725400271301,-1585.12,0.00013787,2]
[337058737,1725400271311,-1396.48,0.00013787,2]
[337058738,1725400271320,-2718.35,0.00013787,2]
[337058739,1725400271330,-1495.22,0.00013787,2]
[337058740,1725400271339,-1495.22,0.00013787,2]
[337058741,1725400271348,-3966.86,0.00013787,2]
[337058742,1725400271357,-3966.86,0.00013787,2]
[337058743,1725400271366,-1666.2,0.00013787,2]
[337058744,1725400271375,-1666.2,0.00013787,2]
[337058745,1725400271384,-500.0,0.00013787,2]
[337058746,1725400271394,-199.72645337,0.00013787,2]
[337058747,1725400271403,-500.0,0.00013787,2]
[337058748,1725400271413,-1090.29,0.00013787,2]
[337058749,1725400271422,-500.0,0.00013787,2]
[337058750,1725400271432,-1090.29,0.00013787,2]
[337058751,1725400271441,-224.05978778,0.00013787,2]
[337058752,1725400271450,-2686.82,0.00013787,2]
[337058753,1725400271460,-1785.61,0.00013787,2]
[337058754,1725400271470,-2686.82,0.00013787,2]
[337058755,1725400271479,-1785.61,0.00013787,2]
[337058756,1725400271488,-3336.2,0.00013787,2]
[337058757,1725400271497,-3336.2,0.00013787,2]
[337058758,1725400271507,-497.49936049,0.00013787,2]
[337058759,1725400271516,-1679.38,0.00013787,2]
[337058760,1725400271525,-1679.38,0.00013787,2]
[337058761,1725400271534,-500.0,0.00013787,2]
[337058762,1725400271543,-3148.4,0.00013787,2]
[337058763,1725400271553,-3148.4,0.00013787,2]
[337058764,1725400271562,-6338.04,0.00013787,2]
[337058765,1725400271571,-1813.17,0.00013787,2]
[337058766,1725400271580,-1813.17,0.00013787,2]
[337058767,1725400271590,-17290.59,0.00013787,2]
[337058768,1725400271599,-17290.59,0.00013787,2]
[337058769,1725400271608,-500.0,0.00013787,2]
[337058770,1725400271619,-1776.21,0.00013787,2]
[337058771,1725400271629,-500.0,0.00013787,2]
[337058772,1725400271638,-1776.21,0.00013787,2]
[337058773,1725400271647,-500.0,0.00013787,2]
[337058774,1725400271657,-3467.38,0.00013787,2]
[337058775,1725400271667,-1925.41,0.00013787,2]
[337058776,1725400271676,-3467.38,0.00013787,2]
[337058777,1725400271686,-1925.41,0.00013787,2]
[337058778,1725400271695,-2191.73,0.00013787,2]
[337058779,1725400271704,-680.05,0.00013787,2]
[337058780,1725400271715,-680.05,0.00013787,2]
[337058781,1725400271726,-1303.88,0.00013787,2]
[337058782,1725400271736,-1303.88,0.00013787,2]
[337058783,1725400271746,-1133.5,0.00013787,2]
[337058784,1725400271755,-2886.04,0.00013787,2]
[337058785,1725400271765,-1133.5,0.00013787,2]
[337058786,1725400271775,-588.24,0.00013787,2]
[337058787,1725400271784,-588.24,0.00013787,2]
[337058788,1725400271794,-500.0,0.00013787,2]
[337058789,1725400271803,-500.0,0.00013787,2]
[337058790,1725400271813,-735.77,0.00013787,2]
[337058791,1725400271822,-735.77,0.00013787,2]
[337058792,1725400271831,-1734.81,0.00013787,2]
[337058793,1725400271840,-2180.0,0.00013787,2]
[337058794,1725400271849,-1734.81,0.00013787,2]
[337058795,1725400271859,-1353.3,0.00013787,2]
[337058796,1725400271868,-1353.3,0.00013787,2]
[337058797,1725400271878,-554.56,0.00013787,2]
[337058798,1725400271887,-554.56,0.00013787,2]
[337058799,1725400271896,-5307.94,0.00013787,2]
[337058800,1725400271906,-2725.67,0.00013787,2]
[337058801,1725400271915,-2725.67,0.00013787,2]
[337058802,1725400271924,-1716.24,0.00013787,2]
[337058803,1725400271934,-1716.24,0.00013787,2]
[337058804,1725400271943,-500.0,0.00013787,2]
[337058805,1725400271952,-500.0,0.00013787,2]
[337058806,1725400271962,-500.0,0.00013787,2]
[337058807,1725400271971,-514.76517597,0.00013787,2]
[337058808,1725400271980,-5233.57,0.00013787,2]
[337058809,1725400271990,-5233.57,0.00013787,2]
[337058810,1725400272000,-1127.34,0.00013787,2]
[337058811,1725400272010,-1149.45,0.00013787,2]
[337058812,1725400272019,-556.64,0.00013787,2]
[337058813,1725400272028,-556.64,0.00013787,2]
[337058814,1725400272037,-500.0,0.00013787,2]
[337058815,1725400272046,-500.0,0.00013787,2]
[337058816,1725400272055,-500.0,0.00013787,2]